fUST/lending_fUST_20251120
["ID","MTS","AMOUNT","RATE_DAILY","PERIOD"]
[394441982,1763577037676,-500.0,0.0001196,2]
[394441983,1763577037685,-500.0,0.0001196,2]
[394441984,1763577037694,-500.0,0.0001196,2]
[394441985,1763577037705,-270.28634496,0.0001196,2]
[394441986,1763577037714,-500.0,0.0001196,2]
[394441987,1763577037724,-500.0,0.0001196,2]
[394441988,1763577037734,-500.0,0.0001196,2]
[394441989,1763577037745,-500.0,0.0001196,2]
[394441990,1763577037755,-500.0,0.0001196,2]
[394441991,1763577037764,-500.0,0.0001196,2]
[394441992,1763577037773,-500.0,0.0001196,2]
[394441993,1763577037782,-500.0,0.0001196,2]
[394441994,1763577037794,-500.0,0.0001196,2]
[394441995,1763577037803,-500.0,0.0001196,2]
[394441996,1763577037813,-500.0,0.0001196,2]
[394441997,1763577037821,-500.0,0.0001196,2]
[394441998,1763577037830,-500.0,0.0001196,2]
[394441999,1763577037839,-500.0,0.0001196,2]
[394442000,1763577037848,-500.0,0.0001196,2]
[394442001,1763577037857,-500.0,0.0001196,2]
[394442002,1763577037865,-500.0,0.0001196,2]
[394442003,1763577037875,-500.0,0.0001196,2]
[394442004,1763577037883,-500.0,0.0001196,2]
[394442005,1763577037892,-500.0,0.0001196,2]
[394442006,1763577037901,-500.0,0.0001196,2]
[394442007,1763577037910,-500.0,0.0001196,2]
[394442008,1763577037919,-500.0,0.0001196,2]
[394442009,1763577037928,-500.0,0.0001196,2]
[394442010,1763577037938,-500.0,0.0001196,2]
[394442011,1763577037947,-500.0,0.0001196,2]
[394442012,1763577037955,-890000.0,0.00011961,2]
[394442013,1763577037964,-933.39939755,0.00012058,2]
[394442014,1763577037973,-567.0,0.00012059,2]
[394442015,1763577037983,-50000.0,0.0001206,2]
[394442016,1763577037991,-500.0,0.00012061,2]
[394442017,1763577038002,-206.57223267,0.00012084,2]
[394442018,1763577038011,-414.92008594,0.00012173,2]
[394442019,1763577038021,-500.0,0.00012173,2]
[394442020,1763577038030,-151.0,0.000122,2]
[394442021,1763577038039,-151.0,0.000123,2]
[394442022,1763577038048,-500.0,0.00012335,2]
[394442023,1763577038058,-151.0,0.000125,2]
[394442024,1763577038067,-151.0,0.000125,2]
[394442025,1763577038076,-1824.88036008,0.000125,2]
[394442026,1763577038085,-151.0,0.000126,2]
[394442027,1763577038095,-151.0,0.000126,2]
[394442028,1763577038103,-504.76291917,0.00012721,2]
[394442029,1763577038113,-151.0,0.000128,2]
[394442030,1763577038122,-151.0,0.000128,2]
[394442031,1763577038131,-151.0,0.000129,2]
[394442032,1763577038141,-151.0,0.000129,2]
[394442033,1763577038150,-560.684511,0.00013013,2]
[394442034,1763577038159,-1009.23211979,0.00013013,2]
[394442035,1763577038169,-1794.19043519,0.00013013,2]
[394442036,1763577038178,-2803.42255498,0.00013013,2]
[394442037,1763577038187,-4036.92847917,0.00013013,2]
[394442038,1763577038196,-5494.70820776,0.00013013,2]
[394442039,1763577038206,-7169.584979,0.00013013,2]
[394442040,1763577038215,-201.02093448,0.00013013,2]
[394442041,1763577038226,-804.08373791,0.00013013,2]
[394442042,1763577038236,-1809.1884103,0.00013013,2]
[394442043,1763577038250,-3216.33495165,0.00013013,2]
[394442044,1763577038261,-5020.4978386,0.00013013,2]
[394442045,1763577038272,-151.0,0.000131,2]
[394442046,1763577038283,-151.0,0.000131,2]
[394442047,1763577038293,-420.0,0.0001313,2]
[394442048,1763577038304,-1646.0,0.00013156,2]
[394442049,1763577038314,-151.0,0.000132,2]
[394442050,1763577038325,-151.0,0.000132,2]
[394442051,1763577038335,-151.0,0.000134,2]
[394442052,1763577038346,-151.0,0.000134,2]
[394442053,1763577038356,-1876.3514704,0.00013477,2]
[394442054,1763577038366,-151.0,0.000135,2]
[394442055,1763577038376,-151.0,0.000135,2]
[394442056,1763577038386,-2150.69965507,0.00013523,2]
[394442057,1763577038396,-2357.19703993,0.00013594,2]
[394442058,1763577038407,-500.0,0.00013673,2]
[394442059,1763577038418,-500.0,0.00013673,2]
[394442060,1763577038431,-500.0,0.00013673,2]
[394442061,1763577038442,-500.0,0.00013698,2]
[394442062,1763577038452,-256.37811665,0.00013698,2]
[394442063,1763577038463,-500.0,0.00013698,2]
[394442064,1763577038475,-500.0,0.00013698,2]
[394442065,1763577038485,-500.0,0.00013698,2]
[394442066,1763577038499,-500.0,0.00013698,2]
[394442067,1763577038509,-500.0,0.00013698,2]
[394442068,1763577038519,-500.0,0.00013698,2]
[394442069,1763577038534,-500.0,0.00013698,2]
[394442070,1763577038544,-500.0,0.00013698,2]
[394442071,1763577038553,-500.0,0.00013698,2]
[394442072,1763577038563,-500.0,0.00013698,2]
[394442073,1763577038573,-500.0,0.00013698,2]
[394442074,1763577038582,-500.0,0.00013698,2]
[394442075,1763577038593,-500.0,0.00013698,2]
[394442076,1763577038602,-500.0,0.00013698,2]
[394442077,1763577038612,-500.0,0.00013698,2]
[394442078,1763577038622,-500.0,0.00013698,2]
[394442079,1763577038632,-500.0,0.00013698,2]
[394442080,1763577038641,-500.0,0.00013698,2]
[394442081,1763577038651,-10106.14,0.00013698,2]
[394442082,1763577038660,-10106.14,0.00013698,2]
[394442083,1763577038670,-10106.14,0.00013698,2]
[394442084,1763577038679,-10106.14,0.00013698,2]
[394442085,1763577038689,-10106.14,0.00013698,2]
[394442086,1763577038698,-10106.14,0.00013698,2]
[394442087,1763577038708,-10106.14,0.00013698,2]
[394442088,1763577038717,-10106.14,0.00013698,2]
[394442089,1763577038726,-10106.14,0.00013698,2]
[394442090,1763577038736,-10106.14,0.00013698,2]
[394442091,1763577038747,-10106.14,0.00013698,2]
[394442092,1763577038757,-10106.14,0.00013698,2]
[394442093,1763577038766,-10106.14,0.00013698,2]
[394442094,1763577038776,-10106.14,0.00013698,2]
[394442095,1763577038785,-10106.14,0.00013698,2]
[394442096,1763577038794,-10106.14,0.00013698,2]
[394442097,1763577038804,-10106.14,0.00013698,2]
[394442098,1763577038814,-10106.14,0.00013698,2]
[394442099,1763577038824,-3507.07703454,0.00013698,2]
[394442100,1763577039143,-289.31620544,0.00013698,2]
[394442120,1763577042214,-3e-08,0.00013698,2]
[394442172,1763577140964,-513.46132627,0.00011605,2]
[394442175,1763577236858,3835.49040389,0.00011489,2]
[394442176,1763577245524,3835.49040389,0.00011489,2]
[394442177,1763577402570,54383.1,0.00040316,20]
[394442178,1763577404550,176.865,0.00040316,120]
[394442180,1763577412986,169.8126182,5.464e-05,2]
[394442192,1763577445202,300.0,0.00011487,2]
[394442193,1763577453906,300.0,0.00011487,2]
[394442194,1763577462253,300.0,0.00011487,2]
[394442200,1763577470060,204.67815682,0.00011545,2]
[394442204,1763577478199,204.67815682,0.00011545,2]
[394442208,1763577485986,204.67815682,0.00011545,2]
[394442209,1763577494288,204.67815682,0.00011545,2]
[394442210,1763577502080,204.67815682,0.00011545,2]
[394442211,1763577510096,204.67815682,0.00011545,2]
[394442212,1763577517886,204.67815682,0.00011545,2]
[394442213,1763577525999,204.67815682,0.00011545,2]
[394442214,1763577533950,204.67815682,0.00011545,2]
[394442215,1763577542013,204.67815682,0.00011545,2]
[394442216,1763577549805,204.67815682,0.00011545,2]
[394442217,1763577555972,606.03710292,0.00014511,3]
[394442218,1763577558345,204.67815682,0.00011545,2]
[394442219,1763577566131,204.67815682,0.00011545,2]
[394442222,1763577574194,204.67815682,0.00011545,2]
[394442224,1763577582064,204.67815682,0.00011545,2]
[394442225,1763577590647,204.67815682,0.00011545,2]
[394442226,1763577598451,204.67815682,0.00011545,2]
[394442227,1763577606491,204.67815682,0.00011545,2]
[394442238,1763577616389,206.57223267,0.00011503,2]
[394442240,1763577631405,204.67815682,0.00011458,2]
[394442241,1763577653457,204.67815682,0.00011458,2]
[394442244,1763577675163,204.67815682,0.00011458,2]
[394442245,1763577693595,447.89393496,0.00014506,3]
[394442246,1763577697903,204.67815682,0.00011458,2]
[394442247,1763577720342,204.67815682,0.00011458,2]
[394442248,1763577742150,204.67815682,0.00011458,2]
[394442249,1763577754567,560.913626,0.00030137,120]
[394442250,1763577763766,204.67815682,0.00011458,2]
[394442251,1763577787152,204.67815682,0.00011458,2]
[394442252,1763577809460,204.67815682,0.00011458,2]
[394442253,1763577817493,204.67815682,0.00011458,2]
[394442254,1763577825766,204.67815682,0.00011458,2]
[394442255,1763577849987,204.67815682,0.00011458,2]
[394442256,1763577871617,204.67815682,0.00011458,2]
[394442257,1763577893342,204.67815682,0.00011458,2]
[394442262,1763577908515,4533.15252623,0.000155,3]
[394442269,1763577916574,204.67815682,0.00011458,2]
[394442270,1763577919553,50000.0,0.00015,3]
[394442271,1763577919586,25000.0,0.00015,3]
[394442274,1763577938404,204.67815682,0.00011458,2]
[394442275,1763577960024,204.67815682,0.00011458,2]
[394442276,1763577970436,-1920.54,0.00022,14]
[394442277,1763577970608,-1920.54,0.000249,14]
[394442278,1763577970634,-300.0,0.00025,30]
[394442279,1763577970663,-1000.0,0.00025162,20]
[394442280,1763577970691,-1000.0,0.00025162,20]
[394442281,1763577970718,-313.45090458,0.00026125,17]
[394442282,1763577970745,-313.45090458,0.00026237,25]
[394442283,1763577970775,-313.45090458,0.00026349,32]
[394442284,1763577970800,-313.45090458,0.00026461,40]
[394442285,1763577970824,-1920.54,0.000265,14]
[394442286,1763577970853,-313.45090458,0.00026573,48]
[394442287,1763577970880,-313.45090458,0.00026685,56]
[394442288,1763577970906,-313.45090458,0.00026797,63]
[394442289,1763577970932,-313.45090458,0.0002691,71]
[394442290,1763577970957,-313.45090458,0.00027022,79]
[394442291,1763577970983,-313.45090458,0.00027134,86]
[394442292,1763577971011,-313.45090458,0.00027246,94]
[394442293,1763577971035,-313.45090458,0.00027358,102]
[394442294,1763577971062,-167.0,0.00027616,14]
[394442295,1763577971089,-1000.0,0.00027678,30]
[394442296,1763577971116,-1000.0,0.00027678,30]
[394442297,1763577971142,-579.0,0.00027678,30]
[394442298,1763577971167,-1920.54,0.000281,14]
[394442299,1763577971191,-167.0,0.00028997,14]
[394442300,1763577971218,-209.83,0.00029101,30]
[394442301,1763577971242,-165.21139048,0.00029589,35]
[394442302,1763577971270,-1920.54,0.000298,14]
[394442303,1763577971295,-409.93926411,0.0003,10]
[394442304,1763577971323,-606377.19171495,0.0003,30]
[394442305,1763577971348,-985.61786054,0.0003,10]
[394442306,1763577971372,-160.0,0.0003,30]
[394442307,1763577971396,-1074.7,0.0003,30]
[394442308,1763577971420,-213.0,0.00030137,38]
[394442309,1763577971445,-1074.7,0.0003018,30]
[394442310,1763577971469,-1074.7,0.0003036,30]
[394442311,1763577971499,-1000.0,0.00030446,30]
[394442312,1763577971527,-1000.0,0.00030446,30]
[394442313,1763577971556,-1000.0,0.00030446,30]
[394442314,1763577971581,-186.0,0.00031233,45]
[394442315,1763577971610,-1920.54,0.000313,14]
[394442316,1763577971639,-419.67,0.00031747,30]
[394442317,1763577971664,-1532.42377056,0.00032,30]
[394442318,1763577971690,-1200.0,0.00032,10]
[394442319,1763577971714,-237.0,0.00032329,52]
[394442320,1763577971740,-150.0,0.00032558,30]
[394442321,1763577971768,-582.98178408,0.00032832,30]
[394442322,1763577971797,-151.0,0.00032877,31]
[394442323,1763577971823,-151.0,0.00032877,31]
[394442324,1763577971847,-151.0,0.00032877,31]
[394442325,1763577971872,-151.0,0.00032877,31]
[394442326,1763577971896,-151.0,0.00032877,31]
[394442327,1763577971919,-151.0,0.00032877,31]
[394442328,1763577971944,-151.0,0.00032877,31]
[394442329,1763577971969,-151.0,0.00032877,31]
[394442330,1763577971993,-151.0,0.00032877,31]
[394442331,1763577972098,-151.0,0.00032877,31]
[394442332,1763577972124,-151.0,0.00032877,31]
[394442333,1763577972149,-151.0,0.00032877,31]
[394442334,1763577972174,-151.0,0.00032877,31]
[394442335,1763577972198,-151.0,0.00032877,31]
[394442336,1763577972224,-151.0,0.00032877,31]
[394442337,1763577972251,-156.307023,0.00032877,31]
[394442338,1763577972278,-2199.01,0.00032877,10]
[394442339,1763577972304,-3800.24,0.00032877,10]
[394442340,1763577972330,-225.67906673,0.000332,117]
[394442341,1763577972357,-225.6790667,0.000332,117]
[394442342,1763577972382,-225.6790667,0.000332,117]
[394442343,1763577972410,-1000.0,0.00033491,30]
[394442344,1763577972437,-1000.0,0.00033491,30]
[394442345,1763577972463,-1000.0,0.00033491,30]
[394442346,1763577972490,-715.0,0.00033491,30]
[394442347,1763577972516,-1920.54,0.000335,30]
[394442348,1763577972542,-609.94090733,0.00033633,120]
[394442349,1763577972567,-195.0,0.00033973,59]
[394442350,1763577972593,-254.99141503,0.0003399,60]
[394442351,1763577972620,-1520.57,0.00034,14]
[394442352,1763577972647,-95000.0,0.00034247,30]
[394442353,1763577972673,-169.375,0.00034254,120]
[394442354,1763577972700,-629.5,0.00034392,30]
[394442355,1763577972726,-382.59282,0.00034615,30]
[394442356,1763577972754,-395.8371224,0.00034632,30]
[394442357,1763577972781,-395.8371224,0.00034632,30]
[394442358,1763577972810,-395.8371224,0.00034632,30]
[394442359,1763577972835,-169.375,0.00034837,120]
[394442360,1763577972860,-1000.0,0.00035,14]
[394442361,1763577972884,-800.0,0.00035,10]
[394442362,1763577972909,-3444.5581765,0.00035,120]
[394442363,1763577972933,-165.0,0.00035,120]
[394442364,1763577972957,-560.913626,0.0003516,120]
[394442365,1763577972982,-1190.98761,0.000352,120]
[394442366,1763577973008,-500.0,0.00035207,30]
[394442367,1763577973034,-169.375,0.00035344,60]
[394442368,1763577973060,-500.0,0.00035349,30]
[394442369,1763577973087,-1920.54,0.000354,30]
[394442370,1763577973113,-169.375,0.0003542,120]
[394442371,1763577973138,-500.0,0.00035463,30]
[394442372,1763577973162,-169.375,0.00035595,60]
[394442373,1763577973187,-206.0,0.00035616,80]
[394442374,1763577973211,-500.0,0.00035625,30]
[394442375,1763577973235,-646.78297556,0.00035633,120]
[394442376,1763577973262,-500.0,0.00035791,30]
[394442377,1763577973287,-843.80442539,0.000359,15]
[394442378,1763577973312,-1000.0,0.00036192,10]
[394442379,1763577973339,-500.0,0.00036275,30]
[394442380,1763577973363,-166.0,0.00036284,14]
[394442381,1763577973387,-151.0,0.00036284,14]
[394442382,1763577973412,-151.0,0.00036284,14]
[394442383,1763577973436,-151.0,0.00036284,14]
[394442384,1763577973463,-333.0,0.00036284,14]
[394442385,1763577973489,-333.0,0.00036284,14]
[394442386,1763577973520,-340.75331161,0.00036284,14]
[394442387,1763577973548,-333.0,0.00036284,14]
[394442388,1763577973576,-333.0,0.00036284,14]
[394442389,1763577973602,-333.0,0.00036284,14]
[394442390,1763577973627,-333.0,0.00036284,14]
[394442391,1763577973652,-333.0,0.00036284,14]
[394442392,1763577973676,-333.0,0.00036284,14]
[394442393,1763577973702,-173.48627142,0.00036284,14]
[394442394,1763577973726,-166.0,0.00036284,14]
[394442395,1763577973755,-151.0,0.00036284,14]
[394442396,1763577973779,-255.0786901,0.00036284,14]
[394442397,1763577973804,-151.0,0.00036284,14]
[394442398,1763577973831,-151.0,0.00036284,14]
[394442399,1763577973855,-151.0,0.00036284,14]
[394442400,1763577973967,-166.0,0.00036284,14]
[394442401,1763577973993,-151.0,0.00036284,14]
[394442402,1763577974022,-151.0,0.00036284,14]
[394442403,1763577974049,-151.0,0.00036284,14]
[394442404,1763577974074,-151.0,0.00036284,14]
[394442405,1763577974099,-151.0,0.00036284,14]
[394442406,1763577974123,-151.0,0.00036284,14]
[394442407,1763577974148,-151.0,0.00036284,14]
[394442408,1763577974174,-151.0,0.00036284,14]
[394442409,1763577974199,-333.0,0.00036284,14]
[394442410,1763577974225,-333.0,0.00036284,14]
[394442411,1763577974253,-151.0,0.00036284,14]
[394442412,1763577974279,-151.0,0.00036284,14]
[394442413,1763577974302,-333.0,0.00036284,14]
[394442414,1763577974327,-296.88871299,0.00036284,14]
[394442415,1763577974351,-151.0,0.00036284,14]
[394442416,1763577974375,-333.0,0.00036284,14]
[394442417,1763577974398,-151.0,0.00036284,14]
[394442418,1763577974422,-151.0,0.00036284,14]
[394442419,1763577974445,-333.0,0.00036284,14]
[394442420,1763577974469,-151.0,0.00036284,14]
[394442421,1763577974495,-151.0,0.00036284,14]
[394442422,1763577974524,-333.0,0.00036284,14]
[394442423,1763577974548,-151.0,0.00036284,14]
[394442424,1763577974572,-333.0,0.00036284,14]
[394442425,1763577974597,-151.0,0.00036284,14]
[394442426,1763577974621,-151.0,0.00036284,14]
[394442427,1763577974646,-333.0,0.00036284,14]
[394442428,1763577974671,-333.0,0.00036284,14]
[394442429,1763577974695,-151.0,0.00036284,14]
[394442430,1763577974721,-152.0,0.00036284,14]
[394442431,1763577974745,-333.0,0.00036284,14]
[394442432,1763577974775,-151.0,0.00036284,14]
[394442433,1763577974803,-152.0,0.00036284,14]
[394442434,1763577974828,-333.0,0.00036284,14]
[394442435,1763577974856,-151.0,0.00036284,14]
[394442436,1763577974882,-333.0,0.00036284,14]
[394442437,1763577974908,-152.0,0.00036284,14]
[394442438,1763577974934,-151.0,0.00036284,14]
[394442439,1763577974960,-333.0,0.00036284,14]
[394442440,1763577974986,-152.0,0.00036284,14]
[394442441,1763577975012,-151.0,0.00036284,14]
[394442442,1763577975037,-333.0,0.00036284,14]
[394442443,1763577975063,-152.0,0.00036284,14]
[394442444,1763577975087,-151.0,0.00036284,14]
[394442445,1763577975111,-333.0,0.00036284,14]
[394442446,1763577975135,-152.0,0.00036284,14]
[394442447,1763577975160,-151.0,0.00036284,14]
[394442448,1763577975183,-333.0,0.00036284,14]
[394442449,1763577975208,-195.18343295,0.00036284,14]
[394442450,1763577975233,-151.0,0.00036284,14]
[394442451,1763577975257,-333.0,0.00036284,14]
[394442452,1763577975282,-152.0,0.00036284,14]
[394442453,1763577975306,-151.0,0.00036284,14]
[394442454,1763577975331,-333.0,0.00036284,14]
[394442455,1763577975356,-152.0,0.00036284,14]
[394442456,1763577975380,-333.0,0.00036284,14]
[394442457,1763577975403,-151.0,0.00036284,14]
[394442458,1763577975427,-152.0,0.00036284,14]
[394442459,1763577975452,-333.0,0.00036284,14]
[394442460,1763577975479,-151.0,0.00036284,14]
[394442461,1763577975506,-152.0,0.00036284,14]
[394442462,1763577975531,-333.0,0.00036284,14]
[394442463,1763577975555,-151.0,0.00036284,14]
[394442464,1763577975580,-152.0,0.00036284,14]
[394442465,1763577975607,-333.0,0.00036284,14]
[394442466,1763577975631,-218.70582509,0.00036284,14]
[394442467,1763577975743,-180.99468953,0.00036284,14]
[394442468,1763577975777,-333.0,0.00036284,14]
[394442469,1763577975804,-152.0,0.00036284,14]
[394442470,1763577975831,-333.0,0.00036284,14]
[394442471,1763577975856,-152.0,0.00036284,14]
[394442472,1763577975881,-333.0,0.00036284,14]
[394442473,1763577975906,-152.0,0.00036284,14]
[394442474,1763577975931,-166.0,0.00036284,14]
[394442475,1763577975956,-333.0,0.00036284,14]
[394442476,1763577975983,-152.0,0.00036284,14]
[394442477,1763577976010,-166.0,0.00036284,14]
[394442478,1763577976037,-333.0,0.00036284,14]
[394442479,1763577976065,-152.0,0.00036284,14]
[394442480,1763577976092,-166.0,0.00036284,14]
[394442481,1763577976120,-333.0,0.00036284,14]
[394442482,1763577976148,-152.0,0.00036284,14]
[394442483,1763577976175,-333.0,0.00036284,14]
[394442484,1763577976201,-152.0,0.00036284,14]
[394442485,1763577976226,-333.0,0.00036284,14]
[394442486,1763577976254,-152.0,0.00036284,14]
[394442487,1763577976280,-333.0,0.00036284,14]
[394442488,1763577976305,-152.0,0.00036284,14]
[394442489,1763577976332,-333.0,0.00036284,14]
[394442490,1763577976357,-333.0,0.00036284,14]
[394442491,1763577976383,-333.0,0.00036284,14]
[394442492,1763577976409,-333.0,0.00036284,14]
[394442493,1763577976434,-333.0,0.00036284,14]
[394442494,1763577976460,-333.0,0.00036284,14]
[394442495,1763577976486,-333.0,0.00036284,14]
[394442496,1763577976514,-333.0,0.00036284,14]
[394442497,1763577976541,-333.0,0.00036284,14]
[394442498,1763577976566,-333.0,0.00036284,14]
[394442499,1763577976592,-333.0,0.00036284,14]
[394442500,1763577976619,-333.0,0.00036284,14]
[394442501,1763577976646,-333.0,0.00036284,14]
[394442502,1763577976671,-333.0,0.00036284,14]
[394442503,1763577976695,-333.0,0.00036284,14]
[394442504,1763577976720,-333.0,0.00036284,14]
[394442505,1763577976744,-333.0,0.00036284,14]
[394442506,1763577976775,-333.0,0.00036284,14]
[394442507,1763577976799,-333.0,0.00036284,14]
[394442508,1763577976825,-333.0,0.00036284,14]
[394442509,1763577976850,-333.0,0.00036284,14]
[394442510,1763577976874,-216.10716097,0.00036284,14]
[394442511,1763577976898,-333.0,0.00036284,14]
[394442512,1763577976923,-333.0,0.00036284,14]
[394442513,1763577976947,-333.0,0.00036284,14]
[394442514,1763577976972,-333.0,0.00036284,14]
[394442515,1763577976996,-333.0,0.00036284,14]
[394442516,1763577977022,-333.0,0.00036284,14]
[394442517,1763577977047,-173.98146929,0.00036284,14]
[394442518,1763577977071,-175.12851068,0.00036284,14]
[394442519,1763577977096,-174.0,0.00036284,14]
[394442520,1763577977120,-500.0,0.0003629,30]
[394442521,1763577977145,-1000.0,0.00036329,10]
[394442522,1763577977169,-1000.0,0.00036466,10]
[394442523,1763577977192,-1000.0,0.00036603,10]
[394442524,1763577977215,-500.0,0.0003668,30]
[394442525,1763577977239,-1000.0,0.0003674,10]
[394442526,1763577977266,-6334.37126652,0.00036789,60]
[394442527,1763577977293,-1190.98761,0.000368,60]
[394442528,1763577977323,-1000.0,0.0003684,30]
[394442529,1763577977352,-1000.0,0.0003684,30]
[394442530,1763577977380,-1000.0,0.0003684,30]
[394442531,1763577977484,-500.0,0.0003685,30]
[394442532,1763577977514,-1000.0,0.00036877,10]
[394442533,1763577977540,-504.59675271,0.00036986,15]
[394442534,1763577977565,-504.59675271,0.00036986,15]
[394442535,1763577977590,-504.59675271,0.00036986,15]
[394442536,1763577977614,-504.59675271,0.00036986,15]
[394442537,1763577977639,-504.59675271,0.00036986,15]
[394442538,1763577977670,-504.59675271,0.00036986,15]
[394442539,1763577977696,-504.59675271,0.00036986,15]
[394442540,1763577977721,-504.59675271,0.00036986,15]
[394442541,1763577977746,-504.59675271,0.00036986,15]
[394442542,1763577977778,-504.59675271,0.00036986,15]
[394442543,1763577977803,-504.59675271,0.00036986,15]
[394442544,1763577977830,-504.59675271,0.00036986,15]
[394442545,1763577977855,-504.59675271,0.00036986,15]
[394442546,1763577977880,-504.59675271,0.00036986,15]
[394442547,1763577977907,-504.59675271,0.00036986,15]
[394442548,1763577977933,-504.59675271,0.00036986,15]
[394442549,1763577977958,-504.59675271,0.00036986,15]
[394442550,1763577977982,-504.59675271,0.00036986,15]
[394442551,1763577978007,-504.59675271,0.00036986,15]
[394442552,1763577978032,-504.59675271,0.00036986,15]
[394442553,1763577978059,-504.59675271,0.00036986,15]
[394442554,1763577978085,-504.59675271,0.00036986,15]
[394442555,1763577978109,-504.59675271,0.00036986,15]
[394442556,1763577978133,-504.59675271,0.00036986,15]
[394442557,1763577978158,-504.59675271,0.00036986,15]
[394442558,1763577978183,-504.59675271,0.00036986,15]
[394442559,1763577978208,-504.59675271,0.00036986,15]
[394442560,1763577978234,-504.59675271,0.00036986,15]
[394442561,1763577978260,-504.59675271,0.00036986,15]
[394442562,1763577978287,-504.59675271,0.00036986,15]
[394442563,1763577978313,-504.59675271,0.00036986,15]
[394442564,1763577978340,-504.59675271,0.00036986,15]
[394442565,1763577978366,-504.59675271,0.00036986,15]
[394442566,1763577978390,-504.59675271,0.00036986,15]
[394442567,1763577978418,-504.59675271,0.00036986,15]
[394442568,1763577978444,-504.59675271,0.00036986,15]
[394442569,1763577978472,-504.59675271,0.00036986,15]
[394442570,1763577978498,-504.59675271,0.00036986,15]
[394442571,1763577978525,-504.59675271,0.00036986,15]
[394442572,1763577978552,-504.59675271,0.00036986,15]
[394442573,1763577978578,-504.59675271,0.00036986,15]
[394442574,1763577978603,-504.59675271,0.00036986,15]
[394442575,1763577978628,-504.59675271,0.00036986,15]
[394442576,1763577978653,-504.59675271,0.00036986,15]
[394442577,1763577978677,-504.59675271,0.00036986,15]
[394442578,1763577978702,-504.59675271,0.00036986,15]
[394442579,1763577978726,-504.59675271,0.00036986,15]
[394442580,1763577978754,-504.59675271,0.00036986,15]
[394442581,1763577978784,-504.59675271,0.00036986,15]
[394442582,1763577978809,-504.59675271,0.00036986,15]
[394442583,1763577978836,-504.59675271,0.00036986,15]
[394442584,1763577978860,-504.59675271,0.00036986,15]
[394442585,1763577978885,-504.59675271,0.00036986,15]
[394442586,1763577978911,-504.59675271,0.00036986,15]
[394442587,1763577978936,-504.59675271,0.00036986,15]
[394442588,1763577978961,-504.59675271,0.00036986,15]
[394442589,1763577978986,-504.59675271,0.00036986,15]
[394442590,1763577979010,-504.59675271,0.00036986,15]
[394442591,1763577979034,-504.59675271,0.00036986,15]
[394442592,1763577979058,-504.59675271,0.00036986,15]
[394442593,1763577979084,-504.59675271,0.00036986,15]
[394442594,1763577979193,-504.59675271,0.00036986,15]
[394442595,1763577979219,-504.59675271,0.00036986,15]
[394442596,1763577979244,-504.59675271,0.00036986,15]
[394442597,1763577979272,-504.59675271,0.00036986,15]
[394442598,1763577979299,-504.59675271,0.00036986,15]
[394442599,1763577979324,-504.59675271,0.00036986,15]
[394442600,1763577979348,-504.59675271,0.00036986,15]
[394442601,1763577979373,-504.59675271,0.00036986,15]
[394442602,1763577979398,-504.59675271,0.00036986,15]
[394442603,1763577979422,-504.59675271,0.00036986,15]
[394442604,1763577979447,-504.59675271,0.00036986,15]